bitfinex-derivatives/quotes_BTCF0:USTF0_20241214
["timestamp","ask_amount","ask_price","bid_price","bid_amount"]
[1734180020242,0.68027605,101350.0,101340.0,1.5806014]
[1734180020742,0.69024082,101350.0,101340.0,1.5806014]
[1734180022242,0.69024082,101350.0,101340.0,1.62377758]
[1734180023841,0.32944082,101350.0,101340.0,1.62377758]
[1734180024142,0.69024082,101350.0,101340.0,1.62377758]
[1734180024539,0.6289155,101350.0,101340.0,1.62377758]
[1734180024746,0.61895073,101350.0,101340.0,0.04367618]
[1734180024937,0.61895073,101350.0,101320.0,0.42212532]
[1734180025138,0.3608,101290.0,101240.0,0.90455433]
[1734180025334,0.19638793,101280.0,101270.0,1.5]
[1734180025535,0.770968,101280.0,101270.0,1.51542989]
[1734180025750,0.7216,101280.0,101270.0,1.57675521]
[1734180025937,0.7216,101280.0,101270.0,1.61069532]
[1734180025938,0.72167393,101280.0,101270.0,1.61069532]
[1734180026137,0.86815708,101280.0,101270.0,1.5]
[1734180026335,0.91752208,101280.0,101270.0,1.61069532]
[1734180026749,0.9788474,101280.0,101270.0,1.5]
[1734180026949,0.91752208,101280.0,101270.0,1.61069532]
[1734180027247,0.86815708,101280.0,101270.0,1.61069532]
[1734180027443,0.72167393,101280.0,101270.0,1.61069532]
[1734180027641,0.86815708,101280.0,101270.0,1.61069532]
[1734180028152,0.83858105,101280.0,101270.0,1.64259532]
[1734180028448,0.83848748,101280.0,101270.0,1.64259532]
[1734180028842,0.83848748,101280.0,101270.0,1.65253805]
[1734180029641,0.64993224,101280.0,101270.0,2.01386337]
[1734180029847,2.6e-07,101290.0,101270.0,2.69044891]
[1734180030147,0.3608,101320.0,101300.0,0.049355]
[1734180030340,0.049339,101340.0,101320.0,0.049342]
[1734180030545,0.3608,101350.0,101330.0,0.11066632]
[1734180030748,0.37128627,101360.0,101340.0,1.98345064]
[1734180030749,0.0005,101360.0,101340.0,1.98345064]
[1734180031042,0.0005,101360.0,101350.0,0.47145632]
[1734180031240,9.333e-05,101360.0,101350.0,0.410131]
[1734180032148,0.00059333,101360.0,101350.0,0.410131]
[1734180033156,9.333e-05,101360.0,101350.0,0.410131]
[1734180033754,9.333e-05,101360.0,101350.0,0.50358507]
[1734180033949,9.333e-05,101360.0,101350.0,0.53418507]
[1734180034257,0.00059333,101360.0,101350.0,0.53418507]
[1734180035045,0.00059333,101360.0,101350.0,0.440731]
[1734180036258,0.00059333,101360.0,101350.0,1.940731]
[1734180037370,0.00059333,101360.0,101350.0,2.03418507]
[1734180039161,0.00059333,101360.0,101350.0,1.79271369]
[1734180039361,0.00059333,101360.0,101350.0,1.84204069]
[1734180040064,0.1433734,101360.0,101350.0,0.29271369]
[1734180040373,0.04991933,101360.0,101350.0,0.29271369]
[1734180041666,0.04991933,101360.0,101350.0,0.34204469]
[1734180044468,0.04991933,101360.0,101350.0,0.801531]
[1734180047787,0.04991933,101360.0,101350.0,2.301531]
[1734180051274,0.04941933,101360.0,101350.0,2.301531]
[1734180055776,0.67886581,101360.0,101340.0,0.42963695]
[1734180055975,0.50358507,101350.0,101340.0,0.01950295]
[1734180056178,0.049336,101340.0,101330.0,0.44314]
[1734180056882,0.049336,101340.0,101330.0,1.94314]
[1734180057677,0.049336,101340.0,101330.0,1.92949148]
[1734180057878,0.049336,101340.0,101330.0,1.88015148]
[1734180058278,0.049336,101340.0,101330.0,1.8608]
[1734180058473,0.22452841,101340.0,101330.0,1.5]
[1734180058679,0.31798248,101340.0,101330.0,1.5]
[1734180059086,0.7095897,101340.0,101330.0,1.5]
[1734180059478,0.94493783,101340.0,101330.0,1.5]
[1734180059688,0.049341,101330.0,101320.0,0.00148013]
[1734180060079,0.27731018,101330.0,101320.0,0.04466845]
[1734180060281,0.22546592,101330.0,101320.0,0.04466845]
[1734180060481,0.049341,101330.0,101320.0,0.00148013]
[1734180060681,0.049341,101330.0,101320.0,1.50148013]
[1734180060984,0.049341,101330.0,101320.0,1.54466844]
[1734180061289,0.049341,101330.0,101320.0,1.55082613]
[1734180061481,0.27731826,101330.0,101320.0,1.55082613]
[1734180061685,0.22546076,101330.0,101320.0,1.55082613]
[1734180063079,0.17611976,101330.0,101320.0,1.64280007]
[1734180063280,0.14671678,101330.0,101320.0,2.00360007]
[1734180063481,0.14671678,101330.0,101320.0,2.04678897]
[1734180063775,0.14671678,101330.0,101320.0,2.07738897]
[1734180063982,0.32290656,101340.0,101330.0,0.049341]
[1734180064182,0.17618978,101340.0,101330.0,0.53699507]
[1734180064686,0.22552578,101340.0,101330.0,0.53699507]
[1734180065177,0.22552578,101340.0,101330.0,0.53649507]
[1734180065379,0.2281105,101340.0,101330.0,0.53649507]
[1734180065582,0.2281105,101340.0,101330.0,0.5796775]
[1734180065583,0.14676614,101340.0,101330.0,0.5796775]
[1734180065886,0.2729859,101350.0,101340.0,0.049336]
[1734180066082,0.2729859,101350.0,101340.0,2.00359007]
[1734180066487,0.2729859,101350.0,101340.0,2.04676622]
[1734180066690,0.27307799,101350.0,101340.0,2.04676622]
[1734180067492,0.14628923,101350.0,101340.0,2.00359007]
[1734180068183,0.09695823,101350.0,101340.0,2.00359007]
[1734180068581,0.27307799,101350.0,101340.0,2.09704414]
[1734180068789,0.17661976,101370.0,101340.0,2.39704414]
[1734180069083,0.17661976,101370.0,101360.0,0.50358007]
[1734180069285,0.17611976,101370.0,101360.0,0.50358007]
[1734180069493,0.22543676,101380.0,101360.0,0.53468007]
[1734180069692,0.22543676,101380.0,101370.0,0.50357507]
[1734180071593,0.22543676,101380.0,101370.0,2.00357507]
[1734180071781,0.17611976,101380.0,101370.0,2.00357507]
[1734180072691,0.31790684,101390.0,101380.0,0.049316]
[1734180072887,0.31790684,101390.0,101380.0,0.50357007]
[1734180074290,0.14178708,101390.0,101380.0,0.50357007]
[1734180075685,0.09247408,101390.0,101380.0,0.50357007]
[1734180076395,0.09247408,101390.0,101380.0,0.410116]
[1734180076591,0.14178508,101390.0,101380.0,0.410116]
[1734180078290,0.14178508,101390.0,101380.0,0.50357007]
[1734180079302,0.14228508,101390.0,101380.0,0.410116]
[1734180081492,0.31840484,101390.0,101380.0,0.410116]
[1734180082793,0.14228508,101390.0,101380.0,0.410116]
[1734180082998,0.31840484,101390.0,101380.0,0.410116]
[1734180083191,0.14228508,101390.0,101380.0,0.410116]
[1734180083597,0.31840484,101390.0,101380.0,0.410116]
[1734180083799,0.14228508,101390.0,101380.0,0.410116]
[1734180084202,0.14228508,101390.0,101380.0,0.26213511]
[1734180084403,0.31840484,101390.0,101380.0,0.26213511]
[1734180084605,0.14228508,101390.0,101380.0,0.31145111]
[1734180085008,0.14228508,101390.0,101380.0,0.40490518]
[1734180087006,0.049811,101390.0,101380.0,0.40490518]
[1734180089807,0.1669364,101390.0,101380.0,0.40490518]
[1734180089998,0.1669364,101390.0,101380.0,0.31145111]
[1734180091209,0.1664364,101390.0,101380.0,0.31145111]
[1734180092399,0.049311,101390.0,101380.0,0.31145111]
[1734180092903,0.049311,101390.0,101380.0,0.40490518]
[1734180093813,0.16666849,101390.0,101380.0,0.40490518]
[1734180094011,0.16666849,101390.0,101380.0,1.90490518]
[1734180094506,0.049311,101390.0,101380.0,1.90490518]
[1734180095309,0.59759979,101400.0,101380.0,1.85558918]
[1734180095614,0.64690779,101400.0,101390.0,0.410111]
[1734180096406,0.47078803,101400.0,101390.0,0.410111]
[1734180098414,0.67671764,101400.0,101390.0,0.50356507]
[1734180098810,0.67671764,101400.0,101390.0,0.53526507]
[1734180102008,0.67671764,101400.0,101390.0,0.441811]
[1734180103317,0.67671764,101400.0,101390.0,0.53526507]
[1734180103618,0.67523761,101400.0,101390.0,0.53526507]
[1734180105321,0.62592961,101400.0,101390.0,0.53526507]
[1734180105621,0.62592961,101400.0,101390.0,0.56836507]
[1734180105820,0.42,101400.0,101390.0,0.56836507]
[1734180106814,0.59665154,101400.0,101390.0,0.56836507]
[1734180107019,0.42,101400.0,101390.0,0.56836507]
[1734180107419,0.59663668,101400.0,101390.0,0.56836507]
[1734180108313,0.42,101400.0,101390.0,0.56836507]
[1734180111420,0.62592961,101400.0,101390.0,0.56836507]
[1734180112923,0.42,101400.0,101390.0,0.56836507]
[1734180113717,0.42135621,101400.0,101390.0,0.56836507]
[1734180114615,0.59798834,101400.0,101390.0,0.56836507]
[1734180115023,0.56855324,101400.0,101390.0,2.06836507]
[1734180115222,0.56855379,101400.0,101390.0,2.06836507]
[1734180116021,0.56855379,101400.0,101390.0,2.0879377]
[1734180120620,0.56855379,101400.0,101390.0,2.0548377]
[1734180131726,0.56855379,101400.0,101390.0,2.0696377]
[1734180132333,0.56855379,101400.0,101390.0,2.0548377]
[1734180132632,0.56855379,101400.0,101390.0,2.0696377]
[1734180133332,0.74518592,101400.0,101390.0,2.0696377]
[1734180134133,0.74518592,101400.0,101390.0,2.0548377]
[1734180134330,0.59798834,101400.0,101390.0,2.0231377]
[1734180134532,0.63098834,101400.0,101390.0,2.0231377]
[1734180137134,0.68029334,101400.0,101390.0,1.92968363]
[1734180139133,0.59711528,101400.0,101390.0,0.410111]
[1734180139341,0.04931,101390.0,101380.0,0.31144911]
[1734180139638,0.4363468,101390.0,101380.0,1.66348059]
[1734180139935,0.20912028,101390.0,101380.0,1.549314]
[1734180141033,0.20912028,101390.0,101380.0,0.049314]
[1734180141236,0.38559066,101390.0,101380.0,0.049314]
[1734180141430,0.14843622,101390.0,101380.0,0.50356807]
[1734180141739,0.14843622,101390.0,101380.0,2.00356807]
[1734180153752,0.14843622,101390.0,101380.0,2.03366807]
[1734180155244,0.14843622,101390.0,101380.0,2.06279216]
[1734180159844,0.17782659,101390.0,101380.0,2.06279216]
[1734180160044,0.3249451,101390.0,101380.0,2.06279216]
[1734180160247,0.3742551,101390.0,101380.0,2.06279216]
[1734180160447,0.22713659,101390.0,101380.0,2.06279216]
[1734180160851,0.22713659,101390.0,101380.0,0.440214]
[1734180161056,0.22713659,101390.0,101380.0,0.50150308]
[1734180161445,0.22713659,101390.0,101380.0,2.06279216]
[1734180168555,0.17782659,101390.0,101380.0,2.06279216]
[1734180170961,0.1487127,101390.0,101380.0,2.12408124]
[1734180171757,0.1487127,101390.0,101380.0,0.62408124]
[1734180171957,0.1487127,101390.0,101380.0,0.63888124]
[1734180172258,0.1487127,101390.0,101380.0,2.13888124]
[1734180172464,0.1487127,101390.0,101380.0,2.12408124]
[1734180173459,0.1487127,101390.0,101380.0,2.07759216]
[1734180173663,0.1487127,101390.0,101380.0,2.06279216]
[1734180173956,0.1487127,101390.0,101380.0,1.940214]
[1734180174169,0.1487127,101390.0,101380.0,2.06279216]
[1734180175054,0.1487127,101390.0,101380.0,0.56279216]
[1734180175455,0.1487127,101390.0,101380.0,2.06279216]
[1734180180462,0.1487127,101390.0,101380.0,0.62408124]
[1734180181060,0.1487127,101390.0,101380.0,2.12408124]
[1734180182068,0.1487127,101390.0,101380.0,2.06279216]
[1734180185372,0.1980227,101390.0,101380.0,1.940214]
[1734180185674,0.22713659,101390.0,101380.0,2.06279216]
[1734180186066,0.22713659,101390.0,101380.0,2.03269216]
[1734180188067,0.05066621,101390.0,101380.0,1.910114]
[1734180188365,0.05066621,101390.0,101380.0,2.03269216]
[1734180188670,0.33806437,101390.0,101380.0,0.47140308]
[1734180188969,0.28842567,101390.0,101380.0,0.049314]
[1734180189181,0.11195529,101390.0,101380.0,1.54814663]
[1734180189380,0.11195529,101390.0,101380.0,1.59746063]
[1734180190261,0.11195529,101390.0,101380.0,1.549314]
[1734180190468,0.11195529,101390.0,101380.0,1.61060308]
[1734180191274,0.47275529,101390.0,101380.0,1.5]
[1734180192368,0.47275529,101390.0,101380.0,1.56128908]
[1734180194871,0.47275529,101390.0,101380.0,0.06128908]
[1734180195478,0.41146621,101390.0,101380.0,0.06128908]
[1734180196483,0.41146621,101390.0,101380.0,0.11060408]
[1734180197781,0.41146621,101390.0,101380.0,0.06128908]
[1734180201486,0.58773142,101390.0,101380.0,0.06128908]
[1734180202390,0.58773142,101390.0,101380.0,0.11060308]
[1734180203183,0.58773419,101390.0,101380.0,0.11060308]
[1734180203484,0.41146621,101390.0,101380.0,0.06128908]
[1734180206181,0.05066621,101390.0,101380.0,0.06128908]
[1734180206491,0.63704461,101390.0,101380.0,0.06128908]
[1734180206694,0.58776757,101390.0,101380.0,0.06128908]
[1734180208392,0.41146621,101390.0,101380.0,0.06128908]
[1734180208590,0.5878045,101390.0,101380.0,0.06128908]
[1734180208781,0.41146621,101390.0,101380.0,0.06128908]
[1734180216696,0.61739582,101390.0,101380.0,0.06128908]
[1734180220502,0.85274395,101390.0,101380.0,0.06128908]
[1734180221105,0.49194395,101390.0,101380.0,0.06128908]
[1734180221599,0.25659582,101390.0,101380.0,0.06128908]
[1734180224705,0.05066621,101390.0,101380.0,0.17189216]
[1734180225219,0.27660808,101390.0,101380.0,0.17189216]
[1734180225507,0.2273854,101390.0,101380.0,0.17189216]
[1734180227312,0.1780754,101390.0,101380.0,0.17189216]
[1734180229611,0.1780754,101390.0,101380.0,0.53269216]
[1734180230317,0.14855273,101390.0,101380.0,0.53269216]
[1734180231707,0.32527192,101390.0,101380.0,0.53269216]
[1734180232216,0.14855273,101390.0,101380.0,0.53269216]
[1734180234008,0.32527192,101390.0,101380.0,0.53269216]
[1734180234203,0.14855273,101390.0,101380.0,0.53269216]
[1734180235104,0.32527192,101390.0,101380.0,0.53269216]
[1734180235709,0.14855273,101390.0,101380.0,0.53269216]
[1734180236713,0.32527192,101390.0,101380.0,0.53269216]
[1734180236911,0.32527192,101390.0,101380.0,0.59398124]
[1734180236912,0.14855273,101390.0,101380.0,0.59398124]
[1734180237221,0.14855273,101390.0,101380.0,0.53269216]
[1734180237516,0.14855273,101390.0,101380.0,2.03269216]
[1734180237817,0.26620005,101390.0,101380.0,2.03269216]
[1734180238114,0.14855273,101390.0,101380.0,2.03269216]
[1734180252736,0.14855273,101390.0,101380.0,0.53269216]
[1734180253127,0.14855273,101390.0,101380.0,2.03269216]
[1734180253638,0.32527192,101390.0,101380.0,2.03269216]
[1734180254824,0.14855273,101390.0,101380.0,2.03269216]
[1734180257636,0.1780754,101390.0,101380.0,2.03269216]
[1734180258035,0.59671919,101400.0,101380.0,2.09398124]
[1734180258238,0.37315731,101400.0,101390.0,0.70517524]
[1734180258940,0.49093457,101400.0,101390.0,2.31074702]
[1734180259342,1.0443,101410.0,101390.0,2.31074702]
[1734180259636,1.0448,101410.0,101400.0,0.47139208]
[1734180260335,0.03373052,101410.0,101400.0,1.15107875]
[1734180260532,0.12146926,101410.0,101400.0,0.85570679]
[1734180260837,0.12146926,101410.0,101400.0,1.15107875]
[1734180261236,0.5000873,101440.0,101430.0,0.049291]
[1734180261442,0.33988625,101440.0,101430.0,0.11058008]
[1734180263844,0.70068625,101440.0,101430.0,0.11058008]
[1734180265046,0.52396706,101440.0,101430.0,0.11058008]
[1734180269735,0.52396706,101440.0,101430.0,0.049291]
[1734180269933,0.94654522,101440.0,101410.0,0.43103278]
[1734180270239,0.410096,101430.0,101420.0,0.11058408]
[1734180270741,0.410596,101430.0,101420.0,0.11058408]
[1734180271649,0.410096,101430.0,101420.0,0.11058408]
[1734180272738,0.410596,101430.0,101420.0,0.11058408]
[1734180273649,0.410096,101430.0,101420.0,0.11058408]
[1734180274539,0.410596,101430.0,101420.0,0.11058408]
[1734180277638,0.410096,101430.0,101420.0,0.11058408]
[1734180279748,0.049297,101420.0,101410.0,1.61059008]
[1734180279952,0.525497,101420.0,101410.0,1.61059008]
[1734180280341,0.17671919,101430.0,101420.0,0.049297]
[1734180280639,0.00197906,101440.0,101430.0,0.049292]
[1734180280835,0.00197906,101440.0,101430.0,1.97138108]
[1734180281046,0.00197906,101440.0,101430.0,2.00928108]
[1734180281542,0.00147906,101440.0,101430.0,2.07057016]
[1734180282443,0.00147906,101440.0,101430.0,2.00928108]
[1734180282642,0.00197906,101440.0,101430.0,2.00928108]
[1734180283644,0.00147906,101440.0,101430.0,2.00928108]
[1734180287946,0.00147906,101440.0,101430.0,0.447992]
[1734180288150,0.14857297,101440.0,101430.0,0.50928108]
[1734180288455,0.14709391,101440.0,101430.0,0.50928108]
[1734180288851,0.19638091,101440.0,101430.0,0.50928108]
[1734180294056,0.19636064,101440.0,101430.0,0.50928108]
[1734180297358,0.19636064,101440.0,101430.0,0.447992]
[1734180297560,0.47137608,101440.0,101430.0,0.049292]
[1734180297756,0.58657537,101440.0,101430.0,0.11058108]
[1734180308560,0.58657537,101440.0,101430.0,0.049292]
[1734180308967,0.58657537,101440.0,101430.0,0.11058108]
[1734180311457,0.64786445,101440.0,101420.0,2.15817433]
[1734180311656,0.69579908,101430.0,101410.0,0.34908525]
[1734180311860,0.049297,101420.0,101410.0,0.15038808]
[1734180312061,0.2737202,101420.0,101410.0,0.15038808]
[1734180312256,0.049297,101420.0,101410.0,1.65038808]
[1734180312663,0.049297,101420.0,101410.0,1.64988808]
[1734180313567,0.049297,101420.0,101410.0,1.65038808]
[1734180314164,0.69581133,101420.0,101410.0,1.5005]
[1734180314367,0.64787445,101420.0,101410.0,0.0005]
[1734180314564,0.64787445,101420.0,101400.0,0.111486]
[1734180314870,0.45804591,101410.0,101400.0,1.61059408]
[1734180315072,0.410102,101410.0,101400.0,1.549305]
[1734180315271,0.410102,101410.0,101400.0,1.61059408]
[1734180316372,0.55696908,101410.0,101400.0,1.61059408]
[1734180317362,0.67954724,101410.0,101400.0,1.5]
[1734180317565,0.049312,101390.0,101380.0,0.11068523]
[1734180317763,0.410112,101390.0,101380.0,0.11068523]
[1734180317964,0.55695704,101390.0,101380.0,1.61068523]
[1734180319077,0.410112,101390.0,101380.0,1.67197431]
[1734180320066,0.410112,101390.0,101380.0,1.61068523]
[1734180320273,0.52740845,101390.0,101380.0,1.61068523]
[1734180321470,0.52740845,101390.0,101380.0,1.67197431]
[1734180327571,0.16660845,101390.0,101380.0,1.61068523]
[1734180327766,0.16660845,101390.0,101380.0,1.67197431]
[1734180328179,0.11729645,101390.0,101380.0,0.53277431]
[1734180328378,0.52740345,101400.0,101390.0,0.049312]
[1734180328574,0.52740345,101400.0,101390.0,1.61060108]
[1734180328881,0.52740345,101400.0,101390.0,1.61110108]
[1734180329380,0.73553757,101400.0,101390.0,0.0005]
[1734180329576,0.84953757,101400.0,101390.0,0.0005]
[1734180329772,0.049312,101390.0,101380.0,0.50908523]
[1734180329971,0.049312,101390.0,101380.0,2.00908523]
[1734180331574,0.16660845,101390.0,101380.0,2.00908523]
[1734180331779,0.049312,101390.0,101380.0,2.00908523]
[1734180331972,0.16660845,101390.0,101380.0,2.00908523]
[1734180332677,0.16660845,101390.0,101380.0,2.00958523]
[1734180333879,0.16660845,101390.0,101380.0,2.00908523]
[1734180334678,0.16660845,101390.0,101380.0,2.00958523]
[1734180338274,0.31345349,101390.0,101380.0,2.00958523]
[1734180338676,0.31345349,101390.0,101380.0,2.00908523]
[1734180339382,0.19615704,101390.0,101380.0,2.00908523]
[1734180342271,0.049312,101390.0,101380.0,2.00908523]
[1734180343075,0.19635904,101390.0,101380.0,2.00908523]
[1734180343278,0.22580037,101390.0,101380.0,2.00908523]
[1734180349287,0.22580037,101390.0,101380.0,1.64828523]
[1734180349590,0.22594946,101390.0,101380.0,1.70957431]
[1734180351090,0.17663746,101390.0,101380.0,1.70957431]
[1734180351386,0.22458737,101390.0,101380.0,1.70957431]
[1734180354786,0.17663746,101390.0,101380.0,2.30645956]
[1734180355289,0.32381712,101390.0,101380.0,2.30645956]
[1734180356091,0.22458458,101390.0,101380.0,2.30645956]
[1734180356289,0.17663746,101390.0,101380.0,2.30645956]
[1734180356484,0.32377275,101390.0,101380.0,2.30645956]
[1734180356680,0.32377424,101390.0,101380.0,2.30645956]
[1734180357789,0.17663746,101390.0,101380.0,2.30645956]
[1734180357990,0.3237614,101390.0,101380.0,2.30645956]
[1734180358183,0.32376013,101390.0,101380.0,2.30645956]
[1734180358586,0.32376013,101390.0,101380.0,2.1838814]
[1734180358893,0.32375159,101390.0,101380.0,2.30645956]
[1734180359491,0.14711413,101390.0,101380.0,2.30645956]
[1734180364090,0.14711413,101390.0,101380.0,2.36774864]
[1734180364296,0.17713746,101410.0,101390.0,0.049312]
[1734180364496,0.17713746,101410.0,101400.0,0.64528516]
[1734180364686,0.17663746,101410.0,101400.0,2.14528516]
[1734180365088,0.53891695,101420.0,101410.0,0.049302]
[1734180365290,0.53891695,101420.0,101410.0,0.11059108]
[1734180365690,0.58821395,101420.0,101410.0,0.11059108]
[1734180369204,0.53891695,101420.0,101410.0,0.11059108]
[1734180369501,0.17811695,101420.0,101410.0,0.11059108]
[1734180369992,0.58673146,101430.0,101410.0,0.53268016]
[1734180370191,0.53743746,101430.0,101420.0,0.17187516]
[1734180370391,0.53743746,101430.0,101420.0,0.14651979]
[1734180370594,0.53743746,101430.0,101420.0,1.64651979]
[1734180371406,0.53743746,101430.0,101420.0,1.68521979]
[1734180372699,0.52209,101440.0,101420.0,2.04601979]
[1734180372700,0.69872746,101440.0,101420.0,2.04601979]
[1734180372894,0.69872746,101440.0,101430.0,0.11058108]
[1734180375001,0.64943746,101440.0,101430.0,0.11058108]
[1734180375591,0.4728,101440.0,101430.0,0.11058108]
[1734180377404,0.399,101440.0,101430.0,0.17187016]
[1734180377599,0.58672146,101450.0,101440.0,0.049287]
[1734180377803,0.58672146,101450.0,101440.0,0.11057608]
[1734180378002,0.410084,101450.0,101440.0,0.11057608]
[1734180378201,0.3608,101450.0,101440.0,0.17186516]
[1734180379303,0.3608,101450.0,101440.0,1.67186516]
[1734180380707,0.3608,101450.0,101440.0,0.17186516]
[1734180381007,0.41080766,101460.0,101450.0,0.049282]
[1734180381214,0.71031858,101460.0,101450.0,0.11057108]
[1734180381510,0.77160766,101460.0,101450.0,0.11057108]
[1734180382010,0.77160766,101460.0,101440.0,0.11057608]
[1734180382216,0.77160766,101460.0,101450.0,0.11057108]
[1734180384216,0.76248468,101460.0,101450.0,0.11057108]
[1734180384511,0.049287,101450.0,101440.0,0.049286]
[1734180384704,0.47137608,101450.0,101440.0,0.049286]
[1734180384909,0.47137608,101450.0,101430.0,0.06128908]
[1734180385112,0.27889785,101440.0,101430.0,0.11057908]
[1734180385715,0.27939785,101440.0,101430.0,0.11057908]
[1734180386618,0.162187,101440.0,101430.0,0.11057908]
[1734180386911,0.27942284,101440.0,101430.0,0.11057908]
[1734180387218,0.162187,101440.0,101430.0,0.11057908]
[1734180387715,0.161687,101440.0,101430.0,0.11057908]
[1734180390614,0.161687,101440.0,101430.0,1.61057908]
[1734180394227,0.30852179,101440.0,101430.0,1.61057908]
[1734180397428,0.161687,101440.0,101430.0,1.61057908]
[1734180398219,0.161687,101440.0,101430.0,1.54929]
[1734180398220,0.58377608,101440.0,101430.0,1.54929]
[1734180398428,0.049292,101430.0,101420.0,0.26190151]
[1734180398624,0.25755399,101430.0,101420.0,0.22630151]
[1734180398919,0.25755399,101430.0,101420.0,1.78809059]
[1734180398920,0.19626491,101430.0,101420.0,1.78809059]
[1734180404332,0.19626491,101430.0,101420.0,1.84937967]
[1734180404627,0.19626491,101430.0,101420.0,1.98137967]
[1734180404826,0.19626491,101430.0,101420.0,1.98087967]
[1734180405220,0.049292,101430.0,101420.0,1.98087967]
[1734180405818,0.2245691,101430.0,101420.0,1.98087967]
[1734180406026,0.17663746,101430.0,101420.0,1.98087967]
[1734180406934,0.22592946,101430.0,101420.0,1.98087967]
[1734180408436,0.22592946,101430.0,101420.0,1.91959059]
[1734180408633,0.22592946,101430.0,101420.0,1.98087967]
[1734180408926,0.19628919,101430.0,101420.0,1.91959059]
[1734180409434,0.37292665,101430.0,101420.0,1.91959059]
[1734180409932,0.19628919,101430.0,101420.0,1.91959059]
[1734180410523,0.19628919,101430.0,101420.0,2.28039059]
[1734180410722,0.14699719,101430.0,101420.0,2.51691972]
[1734180411029,0.14699719,101430.0,101420.0,2.5782088]
[1734180411232,0.11762046,101430.0,101420.0,2.40120229]
[1734180411632,0.14699719,101440.0,101430.0,0.049292]
[1734180411830,0.14699719,101440.0,101430.0,0.6486202]
[1734180412333,0.14699719,101440.0,101430.0,0.2878202]
[1734180412537,0.14704682,101440.0,101430.0,2.1486202]
[1734180412734,0.32368379,101440.0,101430.0,2.1486202]
[1734180413039,0.17663746,101440.0,101430.0,2.1486202]
[1734180413339,0.59634732,101450.0,101440.0,0.049287]
[1734180413541,0.41988304,101450.0,101440.0,0.11057608]
[1734180413736,0.59635816,101450.0,101440.0,0.11057608]
[1734180414133,0.59635669,101450.0,101440.0,0.11057608]
[1734180414440,0.41988304,101450.0,101440.0,0.11057608]
[1734180415431,0.59636973,101450.0,101440.0,0.11057608]
[1734180415631,0.59636973,101450.0,101440.0,0.15577608]
[1734180415831,0.59636973,101450.0,101440.0,0.24467608]
[1734180415832,0.58706969,101450.0,101440.0,0.24467608]
[1734180416937,0.58656969,101450.0,101440.0,0.24467608]
[1734180418134,0.410083,101450.0,101440.0,0.24467608]
[1734180420440,0.58652681,101450.0,101440.0,0.24467608]
[1734180422139,0.58652681,101450.0,101440.0,0.30596516]
[1734180422140,0.53724381,101450.0,101440.0,0.30596516]
[1734180424646,0.17644381,101450.0,101440.0,0.66676516]
[1734180424847,0.22436785,101450.0,101440.0,0.66676516]
[1734180425540,0.17644381,101450.0,101440.0,0.66676516]
[1734180425846,0.72328473,101460.0,101450.0,0.049282]
[1734180426341,0.78457381,101460.0,101450.0,0.049282]
[1734180426641,0.78457381,101460.0,101450.0,0.11057108]
[1734180426846,0.78407381,101460.0,101450.0,0.11057108]
[1734180427046,0.78407381,101460.0,101450.0,0.049282]
[1734180427644,0.049282,101450.0,101430.0,1.79695628]
[1734180427844,0.1469524,101440.0,101430.0,1.79695628]
[1734180428241,0.1962394,101440.0,101430.0,1.79695628]
[1734180435347,0.049287,101440.0,101430.0,1.79695628]
[1734180435545,0.22563209,101440.0,101430.0,1.79695628]
[1734180435951,0.22563209,101440.0,101430.0,1.61973469]
[1734180436346,0.22563209,101440.0,101430.0,1.79695628]
[1734180437947,0.22563209,101440.0,101430.0,1.61973469]
[1734180438642,0.22563209,101440.0,101430.0,1.79695628]
[1734180454056,0.22563209,101440.0,101430.0,1.7356672]
[1734180454263,0.28692117,101440.0,101430.0,0.2356672]
[1734180454861,0.33132117,101440.0,101430.0,0.2356672]
[1734180455057,0.27003209,101440.0,101430.0,0.29695628]
[1734180455263,0.33132117,101440.0,101430.0,0.2356672]
[1734180455663,0.3315289,101440.0,101430.0,0.23578392]
[1734180456470,0.3746289,101440.0,101430.0,0.23578392]
[1734180457369,0.3746289,101440.0,101430.0,0.29489669]
[1734180459355,0.79671798,101440.0,101430.0,0.17747268]
[1734180459864,0.62968386,101440.0,101430.0,0.17747268]
[1734180460065,0.74508019,101440.0,101430.0,0.17747268]
[1734180461767,0.67427241,101440.0,101430.0,0.28805376]
[1734180461971,0.73556149,101440.0,101430.0,0.28805376]
[1734180462163,0.73556149,101440.0,101430.0,0.22676468]
[1734180465161,0.58677241,101440.0,101430.0,0.11058108]
[1734180465564,0.58677241,101440.0,101430.0,0.28805376]
[1734180466879,0.64806149,101440.0,101430.0,0.22676468]
[1734180467075,0.64806149,101440.0,101430.0,0.049292]
[1734180467669,0.73596149,101440.0,101430.0,0.049292]
[1734180470970,0.73596149,101440.0,101430.0,0.11058108]
[1734180470971,0.67467241,101440.0,101430.0,0.11058108]
[1734180472066,0.63067241,101440.0,101430.0,0.11058108]
[1734180473666,0.453987,101440.0,101430.0,0.11058108]
[1734180476370,0.453987,101440.0,101430.0,0.11995651]
[1734180478374,0.410087,101440.0,101430.0,0.11995651]
[1734180482076,0.94863496,101450.0,101440.0,0.049287]
[1734180482275,0.93916605,101450.0,101440.0,0.06128908]
[1734180482471,0.34296229,101450.0,101440.0,0.06128908]
[1734180482776,0.136984,101450.0,101440.0,0.06128908]
[1734180483277,0.136984,101450.0,101440.0,0.11057608]
[1734180485873,0.049284,101450.0,101440.0,0.11057608]
[1734180486080,0.049284,101450.0,101440.0,0.15227608]
[1734180486772,0.049284,101450.0,101440.0,1.65227608]
[1734180487281,0.27370673,101450.0,101440.0,1.65227608]
[1734180487583,0.22578349,101450.0,101440.0,1.65227608]
[1734180487784,0.049284,101450.0,101440.0,1.65227608]
[1734180488268,0.27369553,101450.0,101440.0,1.65227608]
[1734180488473,0.22577229,101450.0,101440.0,1.590987]
[1734180488669,0.22577229,101450.0,101440.0,1.65227608]
[1734180489285,0.22577229,101450.0,101440.0,0.15227608]
[1734180491483,0.22577229,101450.0,101440.0,0.090987]
[1734180491684,0.22577229,101450.0,101440.0,0.15227608]
[1734180493180,0.049284,101450.0,101440.0,0.15227608]
[1734180493379,0.27366758,101450.0,101440.0,0.21356516]
[1734180493578,0.22574844,101450.0,101440.0,0.21356516]
[1734180495280,0.22574844,101450.0,101440.0,1.71356516]
[1734180498490,0.22574844,101450.0,101440.0,1.79646516]
[1734180500784,0.17646444,101450.0,101440.0,1.79646516]
[1734180500983,0.32350529,101450.0,101440.0,2.15726516]
[1734180501183,0.32350529,101450.0,101440.0,2.33473784]
[1734180501386,0.14704085,101450.0,101440.0,2.33473784]
[1734180502192,0.14704085,101450.0,101440.0,1.97393784]
[1734180502600,0.19632285,101450.0,101440.0,1.97393784]
[1734180503591,0.19632285,101450.0,101440.0,2.33473784]
[1734180504589,0.37278729,101450.0,101440.0,2.15726516]
[1734180504790,0.37278729,101450.0,101440.0,1.79646516]
[1734180505790,0.37278729,101450.0,101440.0,2.15726516]